[Event "Late-Titled-Tuesday-Blitz-November-28-2023"]
[Site "Chess.com"]
[Date "2023.11.28"]
[Round "7"]
[White "German_Bazeev"]
[Black "aa175"]
[Result "1-0"]
[WhiteElo "2814"]
[BlackElo "2604"]
[TimeControl "180+1"]
[EndTime "15:14:48 PST"]
[Termination "German_Bazeev won by checkmate"]

1. d4 {[%clk 0:02:14.4]} 1... Nf6 {[%clk 0:03:00]} 2. Nf3 {[%clk 0:02:14.4]}
2... d5 {[%clk 0:03:00.3]} 3. c4 {[%clk 0:02:14.6]} 3... c6 {[%clk 0:03:01]} 4.
Qc2 {[%clk 0:02:10.7]} 4... g6 {[%clk 0:03:00.5]} 5. Bf4 {[%clk 0:02:09.6]} 5...
Bg7 {[%clk 0:03:00.4]} 6. e3 {[%clk 0:02:10]} 6... O-O {[%clk 0:03:00.8]} 7. Nc3
{[%clk 0:02:10.5]} 7... Bf5 {[%clk 0:03:00.1]} 8. Qb3 {[%clk 0:02:11.2]} 8...
Qb6 {[%clk 0:03:00]} 9. h3 {[%clk 0:02:11.9]} 9... Nbd7 {[%clk 0:02:59.9]} 10.
Be2 {[%clk 0:02:11.4]} 10... e6 {[%clk 0:02:56.3]} 11. c5 {[%clk 0:02:05.4]}
11... Qxb3 {[%clk 0:02:55.1]} 12. axb3 {[%clk 0:02:06.3]} 12... Ne4 {[%clk
0:02:51.9]} 13. g4 {[%clk 0:02:00.3]} 13... Nxc3 {[%clk 0:02:51.1]} 14. bxc3
{[%clk 0:02:01.2]} 14... Be4 {[%clk 0:02:51.3]} 15. O-O {[%clk 0:01:51.3]} 15...
f6 {[%clk 0:02:46.3]} 16. Nd2 {[%clk 0:01:48.3]} 16... g5 {[%clk 0:02:42.9]} 17.
Bd6 {[%clk 0:01:47.6]} 17... Rf7 {[%clk 0:02:40.3]} 18. Nxe4 {[%clk 0:01:46.9]}
18... dxe4 {[%clk 0:02:41.2]} 19. Bc4 {[%clk 0:01:47.2]} 19... Nf8 {[%clk
0:02:37.5]} 20. b4 {[%clk 0:01:46.4]} 20... a6 {[%clk 0:02:32.1]} 21. Bxf8
{[%clk 0:01:34.1]} 21... Kxf8 {[%clk 0:02:33]} 22. Bxe6 {[%clk 0:01:34.5]} 22...
Re7 {[%clk 0:02:33.6]} 23. Bf5 {[%clk 0:01:32.2]} 23... Kf7 {[%clk 0:02:33.2]}
24. Bxh7 {[%clk 0:01:30.4]} 24... Rh8 {[%clk 0:02:32.1]} 25. Bf5 {[%clk
0:01:31]} 25... Rxh3 {[%clk 0:02:32]} 26. Kg2 {[%clk 0:01:31.6]} 26... Rh8
{[%clk 0:02:28.1]} 27. Rh1 {[%clk 0:01:32.1]} 27... Rxh1 {[%clk 0:02:26.7]} 28.
Rxh1 {[%clk 0:01:30.6]} 28... Re8 {[%clk 0:02:26.7]} 29. c4 {[%clk 0:01:26]}
29... Kf8 {[%clk 0:02:19.1]} 30. Rd1 {[%clk 0:01:17.9]} 30... Ra8 {[%clk
0:02:07.8]} 31. Bxe4 {[%clk 0:01:14]} 31... a5 {[%clk 0:02:04.7]} 32. bxa5
{[%clk 0:01:12.9]} 32... Rxa5 {[%clk 0:02:04.2]} 33. Rb1 {[%clk 0:01:13.3]}
33... Ra7 {[%clk 0:02:04.3]} 34. Bf5 {[%clk 0:01:13.9]} 34... Ke8 {[%clk
0:01:47.6]} 35. Bc8 {[%clk 0:01:13.1]} 35... Kd8 {[%clk 0:01:45.9]} 36. Rxb7
{[%clk 0:01:10.6]} 36... Rxb7 {[%clk 0:01:46.6]} 37. Bxb7 {[%clk 0:01:11.3]}
37... Kc7 {[%clk 0:01:47.4]} 38. Ba8 {[%clk 0:01:11.9]} 38... Bf8 {[%clk
0:01:46.3]} 39. Kf3 {[%clk 0:01:11.5]} 39... Be7 {[%clk 0:01:45.4]} 40. Ke4
{[%clk 0:01:11.7]} 40... Kd7 {[%clk 0:01:45.2]} 41. Kf5 {[%clk 0:01:08.5]} 41...
Bd8 {[%clk 0:01:45.8]} 42. Kg6 {[%clk 0:00:56.7]} 42... Be7 {[%clk 0:01:42.4]}
43. Kf7 {[%clk 0:00:56.3]} 43... Bd8 {[%clk 0:01:41.8]} 44. f3 {[%clk 0:00:52]}
44... Ba5 {[%clk 0:01:38.3]} 45. Kxf6 {[%clk 0:00:46.1]} 45... Bd2 {[%clk
0:01:38.5]} 46. Kxg5 {[%clk 0:00:46.2]} 46... Bxe3+ {[%clk 0:01:38.7]} 47. Kf5
{[%clk 0:00:43.9]} 47... Bxd4 {[%clk 0:01:38.7]} 48. f4 {[%clk 0:00:43.4]} 48...
Bxc5 {[%clk 0:01:38.9]} 49. Kg6 {[%clk 0:00:43.9]} 49... Bd4 {[%clk 0:01:35.1]}
50. f5 {[%clk 0:00:44.4]} 50... c5 {[%clk 0:01:32.2]} 51. g5 {[%clk 0:00:42.7]}
51... Ke7 {[%clk 0:01:32.3]} 52. Bd5 {[%clk 0:00:42.9]} 52... Kf8 {[%clk
0:01:32.4]} 53. f6 {[%clk 0:00:41.6]} 53... Be3 {[%clk 0:01:32]} 54. Kf5 {[%clk
0:00:41.5]} 54... Bd2 {[%clk 0:01:26.9]} 55. g6 {[%clk 0:00:41.5]} 55... Bh6
{[%clk 0:01:26.6]} 56. Be6 {[%clk 0:00:39.4]} 56... Bg7 {[%clk 0:01:17.5]} 57.
fxg7+ {[%clk 0:00:39.1]} 57... Kxg7 {[%clk 0:01:18.2]} 58. Kg5 {[%clk
0:00:37.6]} 58... Kh8 {[%clk 0:01:17.2]} 59. Bf5 {[%clk 0:00:37.1]} 59... Kg7
{[%clk 0:01:17.6]} 60. Be4 {[%clk 0:00:37.8]} 60... Kg8 {[%clk 0:01:18.1]} 61.
Bd3 {[%clk 0:00:38.4]} 61... Kg7 {[%clk 0:01:18.7]} 62. Bc2 {[%clk 0:00:39]}
62... Kg8 {[%clk 0:01:19.4]} 63. Bb3 {[%clk 0:00:39.5]} 63... Kg7 {[%clk
0:01:20]} 64. Ba4 {[%clk 0:00:40.1]} 64... Kg8 {[%clk 0:01:20.7]} 65. Bb5 {[%clk
0:00:40]} 65... Kg7 {[%clk 0:01:21.6]} 66. Kf5 {[%clk 0:00:38.1]} 66... Kg8
{[%clk 0:01:22.5]} 67. Ba4 {[%clk 0:00:38.4]} 67... Kg7 {[%clk 0:01:23.4]} 68.
Bd1 {[%clk 0:00:39]} 68... Kg8 {[%clk 0:01:24.3]} 69. Bh5 {[%clk 0:00:39.7]}
69... Kg7 {[%clk 0:01:25.2]} 70. Ke5 {[%clk 0:00:40.1]} 70... Kg8 {[%clk
0:01:26.1]} 71. Kd5 {[%clk 0:00:40.8]} 71... Kg7 {[%clk 0:01:27]} 72. Kxc5
{[%clk 0:00:41.5]} 72... Kg8 {[%clk 0:01:27.9]} 73. Kd5 {[%clk 0:00:42.2]} 73...
Kg7 {[%clk 0:01:28.8]} 74. Ke5 {[%clk 0:00:42.9]} 74... Kg8 {[%clk 0:01:29.7]}
75. Kf5 {[%clk 0:00:43.5]} 75... Kg7 {[%clk 0:01:30.6]} 76. Kg5 {[%clk
0:00:44.1]} 76... Kg8 {[%clk 0:01:31.5]} 77. Bg4 {[%clk 0:00:44.7]} 77... Kg7
{[%clk 0:01:32.4]} 78. Bf5 {[%clk 0:00:45.5]} 78... Kg8 {[%clk 0:01:33.3]} 79.
Be4 {[%clk 0:00:46.2]} 79... Kg7 {[%clk 0:01:34.2]} 80. Bf3 {[%clk 0:00:47]}
80... Kg8 {[%clk 0:01:35.1]} 81. Be2 {[%clk 0:00:47.7]} 81... Kg7 {[%clk
0:01:36]} 82. Bd3 {[%clk 0:00:48.5]} 82... Kg8 {[%clk 0:01:36.9]} 83. Bc2 {[%clk
0:00:49.3]} 83... Kg7 {[%clk 0:01:37.8]} 84. Bb3 {[%clk 0:00:50]} 84... Kg8
{[%clk 0:01:38.7]} 85. Ba4 {[%clk 0:00:50.7]} 85... Kg7 {[%clk 0:01:39.6]} 86.
c5 {[%clk 0:00:51.4]} 86... Kg8 {[%clk 0:01:40.5]} 87. Bb5 {[%clk 0:00:52.1]}
87... Kg7 {[%clk 0:01:41.4]} 88. Bd3 {[%clk 0:00:52.7]} 88... Kh8 {[%clk
0:01:42.3]} 89. Be2 {[%clk 0:00:53.4]} 89... Kg7 {[%clk 0:01:43.2]} 90. Bf3
{[%clk 0:00:54.2]} 90... Kh8 {[%clk 0:01:44.1]} 91. Kh6 {[%clk 0:00:53.7]} 91...
Kg8 {[%clk 0:01:44.5]} 92. c6 {[%clk 0:00:54.2]} 92... Kh8 {[%clk 0:01:45.4]}
93. g7+ {[%clk 0:00:52.4]} 93... Kg8 {[%clk 0:01:46.3]} 94. Bd5# {[%clk
0:00:49.4]} 1-0

[Event "Late-Titled-Tuesday-Blitz-November-28-2023"]
[Site "Chess.com"]
[Date "2023.11.28"]
[Round "7"]
[White "Heinza9"]
[Black "HajiyevKanan"]
[Result "0-1"]
[WhiteElo "2330"]
[BlackElo "2493"]
[TimeControl "180+1"]
[EndTime "15:14:49 PST"]
[Termination "HajiyevKanan won on time"]

1. e4 {[%clk 0:02:41]} 1... c6 {[%clk 0:02:51.7]} 2. d4 {[%clk 0:02:40.5]} 2...
d5 {[%clk 0:02:52.6]} 3. exd5 {[%clk 0:02:40.9]} 3... cxd5 {[%clk 0:02:53.5]} 4.
c4 {[%clk 0:02:41.3]} 4... e6 {[%clk 0:02:53.3]} 5. Nc3 {[%clk 0:02:41.6]} 5...
Nf6 {[%clk 0:02:53.8]} 6. Nf3 {[%clk 0:02:41.4]} 6... Bb4 {[%clk 0:02:54.3]} 7.
cxd5 {[%clk 0:02:40.9]} 7... Nxd5 {[%clk 0:02:55.2]} 8. Bd2 {[%clk 0:02:41.3]}
8... O-O {[%clk 0:02:55.5]} 9. Bd3 {[%clk 0:02:41.4]} 9... Nc6 {[%clk
0:02:56.1]} 10. O-O {[%clk 0:02:41.1]} 10... Nf6 {[%clk 0:02:53.4]} 11. a3
{[%clk 0:02:37.8]} 11... Be7 {[%clk 0:02:53]} 12. Qe2 {[%clk 0:02:36.5]} 12...
Nxd4 {[%clk 0:02:49.8]} 13. Nxd4 {[%clk 0:02:36.7]} 13... Qxd4 {[%clk
0:02:50.7]} 14. Rfd1 {[%clk 0:02:36.9]} 14... Qh4 {[%clk 0:02:50.1]} 15. g3
{[%clk 0:02:35.3]} 15... Qh3 {[%clk 0:02:49.9]} 16. Qf3 {[%clk 0:02:24]} 16...
Ng4 {[%clk 0:02:47]} 17. Qg2 {[%clk 0:02:23.7]} 17... Qxg2+ {[%clk 0:02:46.1]}
18. Kxg2 {[%clk 0:02:24]} 18... b6 {[%clk 0:02:37.8]} 19. Be4 {[%clk 0:02:23.9]}
19... Rb8 {[%clk 0:02:35.1]} 20. Bf4 {[%clk 0:02:19.2]} 20... e5 {[%clk
0:02:34.1]} 21. Nd5 {[%clk 0:02:17.9]} 21... Bc5 {[%clk 0:02:28.7]} 22. f3
{[%clk 0:02:01.4]} 22... exf4 {[%clk 0:02:21.9]} 23. fxg4 {[%clk 0:02:01.5]}
23... fxg3 {[%clk 0:02:21.9]} 24. hxg3 {[%clk 0:01:58.2]} 24... Bxg4 {[%clk
0:02:21.7]} 25. Rh1 {[%clk 0:01:35.5]} 25... f5 {[%clk 0:02:12.9]} 26. Bc2
{[%clk 0:01:32.7]} 26... Rbd8 {[%clk 0:02:08.2]} 27. Bb3 {[%clk 0:01:32.6]}
27... Kh8 {[%clk 0:02:01.7]} 28. Rae1 {[%clk 0:00:59.2]} 28... g6 {[%clk
0:01:52.8]} 29. Re6 {[%clk 0:00:26.3]} 29... Kg7 {[%clk 0:01:31.9]} 30. Rhe1
{[%clk 0:00:20]} 30... a5 {[%clk 0:01:25.7]} 31. Ba2 {[%clk 0:00:18.1]} 31... a4
{[%clk 0:01:25.7]} 32. Bc4 {[%clk 0:00:15.9]} 32... b5 {[%clk 0:01:21.5]} 33.
Ba2 {[%clk 0:00:15.3]} 33... Rd7 {[%clk 0:01:14.2]} 34. Rc6 {[%clk 0:00:14.9]}
34... Bd4 {[%clk 0:01:12.7]} 35. Nf4 {[%clk 0:00:06.1]} 35... Rb8 {[%clk
0:00:35.3]} 36. Ne6+ {[%clk 0:00:05.8]} 36... Kh8 {[%clk 0:00:35.9]} 37. Nf4
{[%clk 0:00:01.8]} 37... Bxb2 {[%clk 0:00:29.4]} 0-1

[Event "Late-Titled-Tuesday-Blitz-November-28-2023"]
[Site "Chess.com"]
[Date "2023.11.28"]
[Round "7"]
[White "Yushko_Olga"]
[Black "emiliochess"]
[Result "1-0"]
[WhiteElo "2139"]
[BlackElo "2411"]
[TimeControl "180+1"]
[EndTime "15:14:49 PST"]
[Termination "Yushko_Olga won by resignation"]

1. d4 {[%clk 0:03:00]} 1... Nf6 {[%clk 0:00:28.8]} 2. c4 {[%clk 0:02:43.6]} 2...
g6 {[%clk 0:00:29.7]} 3. Nc3 {[%clk 0:02:42.4]} 3... d6 {[%clk 0:00:30.6]} 4.
Nf3 {[%clk 0:02:42.2]} 4... Bg7 {[%clk 0:00:31.5]} 5. Bg5 {[%clk 0:02:41.2]}
5... O-O {[%clk 0:00:32.4]} 6. e3 {[%clk 0:02:41.5]} 6... h6 {[%clk 0:00:32.6]}
7. Bh4 {[%clk 0:02:41.5]} 7... Nbd7 {[%clk 0:00:32.5]} 8. Be2 {[%clk 0:02:41.2]}
8... e5 {[%clk 0:00:33.2]} 9. O-O {[%clk 0:02:41.3]} 9... c5 {[%clk 0:00:33.4]}
10. dxe5 {[%clk 0:02:34.9]} 10... Nxe5 {[%clk 0:00:29.6]} 11. Qc2 {[%clk
0:02:33]} 11... Qe7 {[%clk 0:00:28.7]} 12. Rfd1 {[%clk 0:02:31.1]} 12... Be6
{[%clk 0:00:28.2]} 13. Nxe5 {[%clk 0:02:15.9]} 13... dxe5 {[%clk 0:00:26.8]} 14.
Nd5 {[%clk 0:02:13.7]} 14... Bxd5 {[%clk 0:00:19.3]} 15. cxd5 {[%clk 0:02:13.4]}
15... Rfd8 {[%clk 0:00:20.2]} 16. e4 {[%clk 0:01:58.8]} 16... g5 {[%clk
0:00:20.3]} 17. Bg3 {[%clk 0:01:58.8]} 17... a6 {[%clk 0:00:20.1]} 18. a4 {[%clk
0:01:57.4]} 18... Rab8 {[%clk 0:00:19.1]} 19. a5 {[%clk 0:01:55.2]} 19... Bf8
{[%clk 0:00:18.1]} 20. f3 {[%clk 0:01:51.9]} 20... Nd7 {[%clk 0:00:17.4]} 21.
Ra3 {[%clk 0:01:45.5]} 21... Qd6 {[%clk 0:00:08.8]} 22. Rb3 {[%clk 0:01:43.2]}
22... b5 {[%clk 0:00:08.4]} 23. axb6 {[%clk 0:01:41.2]} 23... Rxb6 {[%clk
0:00:09.2]} 24. Rxb6 {[%clk 0:01:38.7]} 24... Qxb6 {[%clk 0:00:10.1]} 25. Qc3
{[%clk 0:01:35.9]} 25... Bd6 {[%clk 0:00:11]} 26. Ra1 {[%clk 0:01:33.9]} 26...
a5 {[%clk 0:00:11]} 27. Rxa5 {[%clk 0:01:31.4]} 27... Rb8 {[%clk 0:00:11.9]} 28.
Rb5 {[%clk 0:01:30.9]} 28... Qa7 {[%clk 0:00:11.1]} 29. Rxb8+ {[%clk 0:01:30.2]}
29... Qxb8 {[%clk 0:00:12]} 30. Bf2 {[%clk 0:01:04.5]} 30... Qb4 {[%clk
0:00:06.3]} 31. Qxb4 {[%clk 0:01:02]} 31... cxb4 {[%clk 0:00:07.2]} 32. Kf1
{[%clk 0:00:54.2]} 32... Kf8 {[%clk 0:00:08.1]} 33. Bb5 {[%clk 0:00:52.9]} 33...
Ke7 {[%clk 0:00:09]} 34. Bxd7 {[%clk 0:00:51.4]} 34... Kxd7 {[%clk 0:00:09.9]}
35. Ke2 {[%clk 0:00:51.3]} 35... Kc7 {[%clk 0:00:10.8]} 36. Kd3 {[%clk
0:00:51.2]} 36... Kb7 {[%clk 0:00:11.7]} 37. Kc4 {[%clk 0:00:51.3]} 37... Ka6
{[%clk 0:00:12.6]} 38. h4 {[%clk 0:00:47.2]} 38... Ka5 {[%clk 0:00:13.4]} 39. b3
{[%clk 0:00:45.7]} 39... f6 {[%clk 0:00:13.4]} 40. hxg5 {[%clk 0:00:44]} 40...
hxg5 {[%clk 0:00:13.8]} 41. Bc5 {[%clk 0:00:40.3]} 41... Bc7 {[%clk 0:00:06.9]}
42. Be7 {[%clk 0:00:39.7]} 1-0

[Event "Late-Titled-Tuesday-Blitz-November-28-2023"]
[Site "Chess.com"]
[Date "2023.11.28"]
[Round "7"]
[White "NotFischer"]
[Black "nindjaxx8"]
[Result "1-0"]
[WhiteElo "2349"]
[BlackElo "2443"]
[TimeControl "180+1"]
[EndTime "15:14:50 PST"]
[Termination "NotFischer won on time"]

1. e4 {[%clk 0:03:00.9]} 1... e6 {[%clk 0:02:52.2]} 2. d4 {[%clk 0:03:00.2]}
2... d5 {[%clk 0:02:51.5]} 3. e5 {[%clk 0:03:00.7]} 3... c5 {[%clk 0:02:50.6]}
4. c3 {[%clk 0:03:01.1]} 4... Nc6 {[%clk 0:02:51.1]} 5. Nf3 {[%clk 0:03:01.5]}
5... Qb6 {[%clk 0:02:51.7]} 6. Bd3 {[%clk 0:03:00.8]} 6... Bd7 {[%clk
0:02:51.5]} 7. O-O {[%clk 0:02:56.7]} 7... cxd4 {[%clk 0:02:49.1]} 8. Re1 {[%clk
0:02:56.5]} 8... Nge7 {[%clk 0:02:44]} 9. h4 {[%clk 0:02:55.6]} 9... Nf5 {[%clk
0:02:32.6]} 10. Nbd2 {[%clk 0:02:50.8]} 10... dxc3 {[%clk 0:02:29.7]} 11. bxc3
{[%clk 0:02:51.7]} 11... Bc5 {[%clk 0:02:28.3]} 12. Rf1 {[%clk 0:02:25.7]} 12...
a6 {[%clk 0:02:16.4]} 13. Rb1 {[%clk 0:02:25.4]} 13... Qa7 {[%clk 0:02:16.5]}
14. Bxf5 {[%clk 0:02:14.2]} 14... exf5 {[%clk 0:02:13.8]} 15. Nb3 {[%clk
0:02:15.1]} 15... Be6 {[%clk 0:02:07.2]} 16. Nxc5 {[%clk 0:02:13.9]} 16... Qxc5
{[%clk 0:02:08.1]} 17. Rxb7 {[%clk 0:02:13.9]} 17... O-O {[%clk 0:01:58]} 18.
Qa4 {[%clk 0:01:57.1]} 18... Qxc3 {[%clk 0:01:45.9]} 19. Ba3 {[%clk 0:01:55.4]}
19... Nxe5 {[%clk 0:01:34.2]} 20. Nxe5 {[%clk 0:01:49.4]} 20... Qxe5 {[%clk
0:01:35.1]} 21. Bxf8 {[%clk 0:01:48.4]} 21... Rxf8 {[%clk 0:01:36]} 22. Qxa6
{[%clk 0:01:44.2]} 22... Qe4 {[%clk 0:01:35.5]} 23. Qd6 {[%clk 0:01:29.7]} 23...
h6 {[%clk 0:01:27]} 24. h5 {[%clk 0:01:17]} 24... d4 {[%clk 0:01:22]} 25. Rb8
{[%clk 0:01:09.8]} 25... Rxb8 {[%clk 0:01:05.7]} 26. Qxb8+ {[%clk 0:01:10.7]}
26... Kh7 {[%clk 0:01:06]} 27. Qb2 {[%clk 0:00:58.7]} 27... d3 {[%clk 0:01:04]}
28. Qd2 {[%clk 0:00:54.2]} 28... Bc4 {[%clk 0:00:58.7]} 29. a4 {[%clk
0:00:50.9]} 29... f4 {[%clk 0:00:53.3]} 30. Re1 {[%clk 0:00:48.9]} 30... Qf5
{[%clk 0:00:50.1]} 31. f3 {[%clk 0:00:43.8]} 31... Qc5+ {[%clk 0:00:46]} 32. Qf2
{[%clk 0:00:43.3]} 32... Qxh5 {[%clk 0:00:44.7]} 33. Qd4 {[%clk 0:00:41.1]}
33... Qa5 {[%clk 0:00:33.3]} 34. Ra1 {[%clk 0:00:35.8]} 34... Ba6 {[%clk
0:00:18.8]} 35. Qe4+ {[%clk 0:00:35.7]} 35... f5 {[%clk 0:00:17.7]} 36. Qxf4
{[%clk 0:00:35.1]} 36... Qc5+ {[%clk 0:00:17.5]} 37. Kh1 {[%clk 0:00:33.6]}
37... Bc8 {[%clk 0:00:11.5]} 38. a5 {[%clk 0:00:31.9]} 38... Qc3 {[%clk
0:00:10.6]} 39. Rc1 {[%clk 0:00:28.1]} 1-0

[Event "Late-Titled-Tuesday-Blitz-November-28-2023"]
[Site "Chess.com"]
[Date "2023.11.28"]
[Round "7"]
[White "jinxy2009"]
[Black "morte-negra"]
[Result "1-0"]
[WhiteElo "2277"]
[BlackElo "2008"]
[TimeControl "180+1"]
[EndTime "15:14:53 PST"]
[Termination "jinxy2009 won on time"]

1. e4 {[%clk 0:03:00.9]} 1... c5 {[%clk 0:02:59.5]} 2. Nf3 {[%clk 0:03:00.1]}
2... d6 {[%clk 0:02:59.9]} 3. d4 {[%clk 0:03:00.5]} 3... cxd4 {[%clk 0:03:00.6]}
4. Nxd4 {[%clk 0:03:01.4]} 4... Nf6 {[%clk 0:03:00.7]} 5. Nc3 {[%clk 0:03:01.8]}
5... a6 {[%clk 0:03:01.2]} 6. Be3 {[%clk 0:03:01.7]} 6... e6 {[%clk 0:03:01.6]}
7. g4 {[%clk 0:03:01.3]} 7... b5 {[%clk 0:02:54.3]} 8. g5 {[%clk 0:03:00.5]}
8... Nfd7 {[%clk 0:02:54]} 9. a3 {[%clk 0:02:58.9]} 9... Bb7 {[%clk 0:02:54.3]}
10. Qd2 {[%clk 0:02:53.1]} 10... Nb6 {[%clk 0:02:54.8]} 11. h4 {[%clk
0:02:46.5]} 11... N8d7 {[%clk 0:02:55.4]} 12. O-O-O {[%clk 0:02:43.6]} 12... Rc8
{[%clk 0:02:55.8]} 13. h5 {[%clk 0:02:36]} 13... Ne5 {[%clk 0:02:52.8]} 14. Qe1
{[%clk 0:01:41.2]} 14... Be7 {[%clk 0:02:35]} 15. Be2 {[%clk 0:01:37.1]} 15...
Bxg5 {[%clk 0:02:24.4]} 16. f4 {[%clk 0:01:34.7]} 16... Nec4 {[%clk 0:02:23.6]}
17. Bxc4 {[%clk 0:01:28.3]} 17... Bh6 {[%clk 0:01:13.3]} 18. Bb3 {[%clk
0:00:54.4]} 18... O-O {[%clk 0:01:05.5]} 19. f5 {[%clk 0:00:52.6]} 19... Bxe3+
{[%clk 0:00:56.1]} 20. Qxe3 {[%clk 0:00:53.5]} 20... e5 {[%clk 0:00:38.5]} 21.
Nf3 {[%clk 0:00:33.4]} 21... Nc4 {[%clk 0:00:36.6]} 22. Bxc4 {[%clk 0:00:32.7]}
22... Rxc4 {[%clk 0:00:37.1]} 23. Rhg1 {[%clk 0:00:31.6]} 23... f6 {[%clk
0:00:35.4]} 24. h6 {[%clk 0:00:27.6]} 24... b4 {[%clk 0:00:23.3]} 25. axb4
{[%clk 0:00:24.7]} 25... Rf7 {[%clk 0:00:20.2]} 26. Nd5 {[%clk 0:00:19.2]} 26...
Qc8 {[%clk 0:00:14.2]} 27. c3 {[%clk 0:00:18.8]} 27... Qc6 {[%clk 0:00:11.6]}
28. hxg7 {[%clk 0:00:18.1]} 28... Qa4 {[%clk 0:00:10.9]} 29. Qd3 {[%clk
0:00:15.5]} 29... Bxd5 {[%clk 0:00:09.4]} 30. Qxd5 {[%clk 0:00:14.2]} 30... Qa1+
{[%clk 0:00:08.5]} 31. Kc2 {[%clk 0:00:14.5]} 1-0

[Event "Late-Titled-Tuesday-Blitz-November-28-2023"]
[Site "Chess.com"]
[Date "2023.11.28"]
[Round "7"]
[White "The_Machine04"]
[Black "Nf3c5"]
[Result "0-1"]
[WhiteElo "2654"]
[BlackElo "2513"]
[TimeControl "180+1"]
[EndTime "15:14:57 PST"]
[Termination "Nf3c5 won on time"]

1. d4 {[%clk 0:02:58.7]} 1... Nf6 {[%clk 0:02:58.3]} 2. Nf3 {[%clk 0:02:57.1]}
2... g6 {[%clk 0:02:50.6]} 3. Nbd2 {[%clk 0:02:56.7]} 3... d5 {[%clk 0:02:48.7]}
4. e3 {[%clk 0:02:56.9]} 4... a5 {[%clk 0:02:44]} 5. c4 {[%clk 0:02:56.2]} 5...
c6 {[%clk 0:02:41.5]} 6. b3 {[%clk 0:02:55.5]} 6... Bf5 {[%clk 0:02:33.5]} 7.
Bb2 {[%clk 0:02:55.5]} 7... Bg7 {[%clk 0:02:31.4]} 8. Be2 {[%clk 0:02:55.7]}
8... O-O {[%clk 0:02:29.8]} 9. O-O {[%clk 0:02:56.2]} 9... Ne4 {[%clk
0:02:30.4]} 10. Rc1 {[%clk 0:02:55.5]} 10... a4 {[%clk 0:02:25.6]} 11. cxd5
{[%clk 0:02:46.2]} 11... cxd5 {[%clk 0:02:21.4]} 12. bxa4 {[%clk 0:02:43.3]}
12... Nxd2 {[%clk 0:02:09.8]} 13. Nxd2 {[%clk 0:02:41.1]} 13... Nc6 {[%clk
0:02:02.5]} 14. Qb3 {[%clk 0:02:35.2]} 14... Ra7 {[%clk 0:01:50.3]} 15. Bb5
{[%clk 0:02:31]} 15... Na5 {[%clk 0:01:28.5]} 16. Qb4 {[%clk 0:02:28.5]} 16...
Nc6 {[%clk 0:01:20.3]} 17. Qc5 {[%clk 0:02:14.9]} 17... Ra8 {[%clk 0:01:15.1]}
18. Ba3 {[%clk 0:02:05.4]} 18... Re8 {[%clk 0:01:14.6]} 19. Bxc6 {[%clk
0:01:49.2]} 19... bxc6 {[%clk 0:01:14.1]} 20. Qxc6 {[%clk 0:01:50.1]} 20... Qa5
{[%clk 0:01:03.7]} 21. Nf3 {[%clk 0:01:28.6]} 21... Be4 {[%clk 0:00:51.4]} 22.
Bc5 {[%clk 0:01:20.4]} 22... Bxf3 {[%clk 0:00:44.3]} 23. gxf3 {[%clk 0:01:21.3]}
23... e5 {[%clk 0:00:36.8]} 24. Qxd5 {[%clk 0:01:14.1]} 24... exd4 {[%clk
0:00:35.9]} 25. exd4 {[%clk 0:01:15]} 25... Qxa4 {[%clk 0:00:36.1]} 26. a3
{[%clk 0:01:12.9]} 26... Rad8 {[%clk 0:00:33.7]} 27. Qc4 {[%clk 0:01:12.3]}
27... Qd7 {[%clk 0:00:34.2]} 28. Rfd1 {[%clk 0:01:05.4]} 28... Qh3 {[%clk
0:00:32.1]} 29. Rc3 {[%clk 0:01:00.6]} 29... Bh6 {[%clk 0:00:29.2]} 30. Qf1
{[%clk 0:00:55.5]} 30... Qh5 {[%clk 0:00:27]} 31. Qg2 {[%clk 0:00:52.2]} 31...
Rd5 {[%clk 0:00:23.6]} 32. Kh1 {[%clk 0:00:24.2]} 32... Bf4 {[%clk 0:00:22.6]}
33. Rg1 {[%clk 0:00:01.8]} 33... Rg5 {[%clk 0:00:20.5]} 0-1

[Event "Late-Titled-Tuesday-Blitz-November-28-2023"]
[Site "Chess.com"]
[Date "2023.11.28"]
[Round "7"]
[White "Actuary44"]
[Black "Good_Knight_Kiss"]
[Result "1-0"]
[WhiteElo "2467"]
[BlackElo "2323"]
[TimeControl "180+1"]
[EndTime "15:15:04 PST"]
[Termination "Actuary44 won on time"]

1. e4 {[%clk 0:03:00.9]} 1... c5 {[%clk 0:02:59.4]} 2. d4 {[%clk 0:03:00.8]}
2... cxd4 {[%clk 0:02:59]} 3. c3 {[%clk 0:03:01.5]} 3... dxc3 {[%clk 0:02:59]}
4. Nxc3 {[%clk 0:03:02.4]} 4... Nc6 {[%clk 0:02:57.9]} 5. f4 {[%clk 0:03:03.3]}
5... d6 {[%clk 0:02:47.1]} 6. Nf3 {[%clk 0:03:03.6]} 6... Nf6 {[%clk 0:02:43.2]}
7. Bd3 {[%clk 0:03:04.1]} 7... g6 {[%clk 0:02:41.4]} 8. O-O {[%clk 0:03:03.8]}
8... Bg7 {[%clk 0:02:41.7]} 9. Kh1 {[%clk 0:03:04.5]} 9... O-O {[%clk
0:02:41.2]} 10. Qe1 {[%clk 0:03:05.1]} 10... e6 {[%clk 0:02:39]} 11. f5 {[%clk
0:03:02.5]} 11... Ne5 {[%clk 0:02:19.3]} 12. fxg6 {[%clk 0:02:59.9]} 12... Nxd3
{[%clk 0:02:15.8]} 13. gxh7+ {[%clk 0:02:58.7]} 13... Kh8 {[%clk 0:02:04.8]} 14.
Qh4 {[%clk 0:02:58]} 14... Nxc1 {[%clk 0:01:59.1]} 15. Raxc1 {[%clk 0:02:58.9]}
15... Bd7 {[%clk 0:01:47.7]} 16. Ng5 {[%clk 0:02:50.9]} 16... Bc6 {[%clk
0:01:42.3]} 17. Rcd1 {[%clk 0:02:46.6]} 17... Qb6 {[%clk 0:01:23.6]} 18. b3
{[%clk 0:02:08.5]} 18... Qc5 {[%clk 0:01:23.3]} 19. Ne2 {[%clk 0:02:06.1]} 19...
Qe5 {[%clk 0:01:16.1]} 20. Ng3 {[%clk 0:01:53.8]} 20... a5 {[%clk 0:01:05.8]}
21. Nf3 {[%clk 0:01:53.2]} 21... Qc5 {[%clk 0:00:57.9]} 22. Ng5 {[%clk
0:01:51.4]} 22... a4 {[%clk 0:00:55.4]} 23. Nh3 {[%clk 0:01:37.8]} 23... Qe5
{[%clk 0:00:48.1]} 24. b4 {[%clk 0:01:22]} 24... Nxe4 {[%clk 0:00:38.5]} 25. Nh5
{[%clk 0:01:22.1]} 25... f5 {[%clk 0:00:16.1]} 26. N3f4 {[%clk 0:01:04]} 26...
Bf6 {[%clk 0:00:04.9]} 27. Ng6+ {[%clk 0:01:03.6]} 27... Kxh7 {[%clk 0:00:04.9]}
28. Nxf8+ {[%clk 0:00:52.9]} 28... Rxf8 {[%clk 0:00:05.2]} 29. Nxf6+ {[%clk
0:00:52.9]} 29... Kg6 {[%clk 0:00:04.3]} 30. Ng4 {[%clk 0:00:38.2]} 30... Qh8
{[%clk 0:00:01.3]} 31. Qxh8 {[%clk 0:00:18.1]} 31... Rxh8 {[%clk 0:00:02.2]} 32.
Ne3 {[%clk 0:00:18.4]} 32... Kf6 {[%clk 0:00:02]} 33. Kg1 {[%clk 0:00:17.9]}
33... Ke7 {[%clk 0:00:02]} 34. Nc4 {[%clk 0:00:17.3]} 34... Rg8 {[%clk
0:00:01.8]} 35. Rfe1 {[%clk 0:00:14.4]} 35... Bd5 {[%clk 0:00:01.4]} 36. Nb6
{[%clk 0:00:13.3]} 36... Bc6 {[%clk 0:00:01.4]} 37. Re2 {[%clk 0:00:12]} 1-0